fUST/lending_fUST_20240713
["ID","MTS","AMOUNT","RATE_DAILY","PERIOD"]
[331927735,1720857039921,-527.83564671,0.00024657,2]
[331927736,1720857039930,-500.0,0.00024657,2]
[331927737,1720857039939,-530.64079953,0.00024657,2]
[331927738,1720857039949,-300.33673601,0.00024657,2]
[331927739,1720857039957,-500.0,0.00024657,2]
[331927740,1720857039967,-500.0,0.00024657,2]
[331927741,1720857039975,-505.76272015,0.00024657,2]
[331927743,1720857039986,-500.0,0.00024657,2]
[331927744,1720857039995,-500.0,0.00024657,2]
[331927745,1720857040004,-520.68277151,0.00024657,2]
[331927746,1720857040012,-500.0,0.00024657,2]
[331927747,1720857040022,-500.0,0.00024657,2]
[331927748,1720857040031,-533.49011437,0.00024657,2]
[331927749,1720857040040,-500.0,0.00024657,2]
[331927750,1720857040049,-500.0,0.00024657,2]
[331927751,1720857040059,-1699.17,0.00024657,2]
[331927752,1720857040069,-500.0,0.00024657,2]
[331927753,1720857040080,-500.0,0.00024657,2]
[331927754,1720857040090,-500.0,0.00024657,2]
[331927755,1720857040099,-500.0,0.00024657,2]
[331927756,1720857040111,-500.0,0.00024657,2]
[331927757,1720857040122,-500.0,0.00024657,2]
[331927758,1720857040132,-204.65285325,0.00024657,2]
[331927759,1720857040144,-500.0,0.00024657,2]
[331927760,1720857040155,-500.0,0.00024657,2]
[331927761,1720857040164,-500.0,0.00024657,2]
[331927762,1720857040174,-500.0,0.00024657,2]
[331927763,1720857040183,-500.0,0.00024657,2]
[331927764,1720857040193,-4745.72,0.00024657,2]
[331927765,1720857040205,-529.38756524,0.00024657,2]
[331927766,1720857040216,-500.0,0.00024657,2]
[331927767,1720857040226,-500.0,0.00024657,2]
[331927768,1720857040236,-500.0,0.00024657,2]
[331927769,1720857040246,-500.0,0.00024657,2]
[331927770,1720857040255,-500.0,0.00024657,2]
[331927771,1720857040267,-500.0,0.00024657,2]
[331927772,1720857040278,-500.0,0.00024657,2]
[331927773,1720857040287,-500.0,0.00024657,2]
[331927774,1720857040298,-500.0,0.00024657,2]
[331927775,1720857040308,-500.0,0.00024657,2]
[331927776,1720857040319,-506.80800595,0.00024657,2]
[331927777,1720857040329,-1727.69,0.00024657,2]
[331927778,1720857040339,-500.0,0.00024657,2]
[331927779,1720857040350,-625.65,0.00024657,2]
[331927780,1720857040359,-500.0,0.00024657,2]
[331927781,1720857040368,-500.0,0.00024657,2]
[331927782,1720857040381,-500.0,0.00024657,2]
[331927783,1720857040391,-500.0,0.00024657,2]
[331927784,1720857040402,-500.0,0.00024657,2]
[331927785,1720857040411,-500.0,0.00024657,2]
[331927786,1720857040420,-500.0,0.00024657,2]
[331927787,1720857040430,-507.50561512,0.00024657,2]
[331927788,1720857040439,-500.0,0.00024657,2]
[331927789,1720857040448,-500.0,0.00024657,2]
[331927790,1720857040458,-500.0,0.00024657,2]
[331927791,1720857040467,-500.0,0.00024657,2]
[331927792,1720857040476,-500.0,0.00024657,2]
[331927793,1720857040485,-500.0,0.00024657,2]
[331927794,1720857040495,-500.0,0.00024657,2]
[331927795,1720857040504,-500.0,0.00024657,2]
[331927796,1720857040513,-500.0,0.00024657,2]
[331927797,1720857040521,-500.0,0.00024657,2]
[331927798,1720857040531,-500.0,0.00024657,2]
[331927799,1720857040539,-500.0,0.00024657,2]
[331927800,1720857040549,-500.0,0.00024657,2]
[331927801,1720857040558,-500.0,0.00024657,2]
[331927802,1720857040568,-500.0,0.00024657,2]
[331927803,1720857040577,-500.0,0.00024657,2]
[331927804,1720857040586,-500.0,0.00024657,2]
[331927805,1720857040595,-500.0,0.00024657,2]
[331927806,1720857040605,-500.0,0.00024657,2]
[331927807,1720857040614,-500.0,0.00024657,2]
[331927808,1720857040623,-500.0,0.00024657,2]
[331927809,1720857040632,-500.0,0.00024657,2]
[331927810,1720857040641,-500.0,0.00024657,2]
[331927811,1720857040650,-500.0,0.00024657,2]
[331927812,1720857040659,-500.0,0.00024657,2]
[331927813,1720857040668,-500.0,0.00024657,2]
[331927814,1720857040677,-502.50360043,0.00024657,2]
[331927815,1720857040686,-500.0,0.00024657,2]
[331927816,1720857040695,-183.23195597,0.00024657,2]
[331927817,1720857040704,-500.0,0.00024657,2]
[331927818,1720857040713,-200.0,0.00024658,15]
[331927819,1720857040722,-500.0,0.00024658,2]
[331927820,1720857040732,-500.0,0.00024658,2]
[331927821,1720857040741,-500.0,0.00024658,2]
[331927822,1720857040750,-500.0,0.00024739,2]
[331927823,1720857040759,-500.0,0.00024838,2]
[331927824,1720857040768,-312.55670096,0.00024838,2]
[331927825,1720857040777,-210.21617097,0.00024838,2]
[331927826,1720857040786,-204.30897043,0.00024838,2]
[331927827,1720857040796,-500.0,0.00024838,2]
[331927828,1720857040806,-275.98979911,0.00024838,2]
[331927829,1720857040816,-471.72052519,0.00024838,2]
[331927830,1720857040828,-500.0,0.00024838,2]
[331927831,1720857040838,-153.0,0.00024839,2]
[331927832,1720857040847,-153.0,0.00024839,2]
[331927833,1720857040855,-153.0,0.00024839,2]
[331927834,1720857040864,-153.0,0.00024839,2]
[331927835,1720857040873,-153.0,0.00024839,2]
[331927836,1720857040882,-153.0,0.00024839,2]
[331927837,1720857040891,-153.0,0.00024839,2]
[331927838,1720857040900,-153.0,0.00024839,2]
[331927839,1720857040909,-153.0,0.00024839,2]
[331927840,1720857040918,-153.0,0.00024839,2]
[331927841,1720857040928,-153.0,0.00024839,2]
[331927842,1720857040937,-153.0,0.00024839,2]
[331927843,1720857040947,-153.0,0.00024839,2]
[331927844,1720857040957,-153.0,0.00024839,2]
[331927845,1720857040965,-153.0,0.00024839,2]
[331927846,1720857040974,-153.0,0.00024839,2]
[331927847,1720857040983,-153.0,0.00024839,2]
[331927848,1720857040992,-153.0,0.00024839,2]
[331927849,1720857041001,-153.0,0.00024839,2]
[331927850,1720857041011,-153.0,0.00024839,2]
[331927851,1720857041019,-153.0,0.00024839,2]
[331927852,1720857041028,-153.0,0.00024839,2]
[331927853,1720857041037,-153.0,0.00024839,2]
[331927854,1720857041046,-153.0,0.00024839,2]
[331927855,1720857041055,-153.0,0.00024839,2]
[331927856,1720857041065,-153.0,0.00024839,2]
[331927857,1720857041073,-153.0,0.00024839,2]
[331927858,1720857041082,-153.0,0.00024839,2]
[331927859,1720857041091,-153.0,0.00024839,2]
[331927860,1720857041100,-153.0,0.00024839,2]
[331927861,1720857041109,-153.0,0.00024839,2]
[331927862,1720857041118,-153.0,0.00024839,2]
[331927863,1720857041127,-153.0,0.00024839,2]
[331927864,1720857041136,-153.0,0.00024839,2]
[331927865,1720857041145,-153.0,0.00024839,2]
[331927866,1720857041154,-153.0,0.00024839,2]
[331927867,1720857041163,-153.0,0.00024839,2]
[331927868,1720857041173,-153.0,0.00024839,2]
[331927869,1720857041182,-153.0,0.00024839,2]
[331927870,1720857041192,-153.0,0.00024839,2]
[331927871,1720857041202,-153.0,0.00024839,2]
[331927872,1720857041211,-153.0,0.00024839,2]
[331927873,1720857041220,-153.0,0.00024839,2]
[331927874,1720857041229,-153.0,0.00024839,2]
[331927875,1720857041239,-153.0,0.00024839,2]
[331927876,1720857041248,-153.0,0.00024839,2]
[331927877,1720857041257,-153.0,0.00024839,2]
[331927878,1720857041266,-153.0,0.00024839,2]
[331927879,1720857041275,-153.0,0.00024839,2]
[331927880,1720857041284,-153.0,0.00024839,2]
[331927881,1720857041293,-153.0,0.00024839,2]
[331927882,1720857041302,-153.0,0.00024839,2]
[331927883,1720857041312,-153.0,0.00024839,2]
[331927884,1720857041321,-153.0,0.00024839,2]
[331927885,1720857041330,-153.0,0.00024839,2]
[331927886,1720857041339,-153.0,0.00024839,2]
[331927887,1720857041349,-153.0,0.00024839,2]
[331927888,1720857041358,-153.0,0.00024839,2]
[331927889,1720857041367,-153.0,0.00024839,2]
[331927890,1720857041375,-153.0,0.00024839,2]
[331927891,1720857041385,-153.0,0.00024839,2]
[331927892,1720857041394,-153.0,0.00024839,2]
[331927893,1720857041402,-153.0,0.00024839,2]
[331927894,1720857041411,-153.0,0.00024839,2]
[331927895,1720857041420,-273.0,0.00024839,2]
[331927896,1720857041430,-273.0,0.00024839,2]
[331927897,1720857041439,-273.0,0.00024839,2]
[331927898,1720857041448,-273.0,0.00024839,2]
[331927899,1720857041457,-273.0,0.00024839,2]
[331927900,1720857041466,-273.0,0.00024839,2]
[331927901,1720857041475,-273.0,0.00024839,2]
[331927902,1720857041485,-273.0,0.00024839,2]
[331927903,1720857041494,-273.0,0.00024839,2]
[331927904,1720857041503,-273.0,0.00024839,2]
[331927905,1720857041512,-273.0,0.00024839,2]
[331927906,1720857041521,-273.0,0.00024839,2]
[331927907,1720857041531,-273.0,0.00024839,2]
[331927908,1720857041542,-273.0,0.00024839,2]
[331927909,1720857041552,-273.0,0.00024839,2]
[331927910,1720857041561,-273.0,0.00024839,2]
[331927911,1720857041571,-273.0,0.00024839,2]
[331927912,1720857041580,-273.0,0.00024839,2]
[331927913,1720857041591,-273.0,0.00024839,2]
[331927914,1720857041600,-273.0,0.00024839,2]
[331927915,1720857041609,-273.0,0.00024839,2]
[331927916,1720857041619,-273.0,0.00024839,2]
[331927917,1720857041627,-273.0,0.00024839,2]
[331927918,1720857041636,-273.0,0.00024839,2]
[331927919,1720857041645,-273.0,0.00024839,2]
[331927920,1720857041654,-273.0,0.00024839,2]
[331927921,1720857041664,-273.0,0.00024839,2]
[331927922,1720857041672,-273.0,0.00024839,2]
[331927923,1720857041681,-273.0,0.00024839,2]
[331927924,1720857041690,-273.0,0.00024839,2]
[331927925,1720857041699,-273.0,0.00024839,2]
[331927926,1720857041708,-273.0,0.00024839,2]
[331927927,1720857041717,-273.0,0.00024839,2]
[331927928,1720857041726,-273.0,0.00024839,2]
[331927929,1720857041735,-273.0,0.00024839,2]
[331927930,1720857041744,-273.0,0.00024839,2]
[331927931,1720857041753,-273.0,0.00024839,2]
[331927932,1720857041762,-273.0,0.00024839,2]
[331927933,1720857041771,-273.0,0.00024839,2]
[331927934,1720857041782,-273.0,0.00024839,2]
[331927935,1720857041791,-273.0,0.00024839,2]
[331927936,1720857041800,-273.0,0.00024839,2]
[331927937,1720857041810,-273.0,0.00024839,2]
[331927938,1720857041824,-273.0,0.00024839,2]
[331927939,1720857041833,-273.0,0.00024839,2]
[331927940,1720857041842,-273.0,0.00024839,2]
[331927941,1720857041852,-273.0,0.00024839,2]
[331927942,1720857041862,-273.0,0.00024839,2]
[331927943,1720857041872,-273.0,0.00024839,2]
[331927944,1720857041881,-273.0,0.00024839,2]
[331927945,1720857041891,-273.0,0.00024839,2]
[331927946,1720857041902,-273.0,0.00024839,2]
[331927947,1720857041912,-273.0,0.00024839,2]
[331927948,1720857041922,-273.0,0.00024839,2]
[331927949,1720857041931,-273.0,0.00024839,2]
[331927950,1720857041940,-273.0,0.00024839,2]
[331927951,1720857041950,-273.0,0.00024839,2]
[331927952,1720857041960,-273.0,0.00024839,2]
[331927953,1720857041969,-273.0,0.00024839,2]
[331927954,1720857041978,-273.0,0.00024839,2]
[331927955,1720857041987,-273.0,0.00024839,2]
[331927956,1720857041996,-273.0,0.00024839,2]
[331927957,1720857042006,-273.0,0.00024839,2]
[331927958,1720857042016,-273.0,0.00024839,2]
[331927959,1720857042027,-273.0,0.00024839,2]
[331927960,1720857042036,-273.0,0.00024839,2]
[331927961,1720857042048,-273.0,0.00024839,2]
[331927962,1720857042058,-273.0,0.00024839,2]
[331927963,1720857042067,-273.0,0.00024839,2]
[331927964,1720857042079,-273.0,0.00024839,2]
[331927965,1720857042089,-273.0,0.00024839,2]
[331927966,1720857042100,-273.0,0.00024839,2]
[331927967,1720857042109,-273.0,0.00024839,2]
[331927968,1720857042120,-273.0,0.00024839,2]
[331927969,1720857042130,-273.0,0.00024839,2]
[331927970,1720857042140,-273.0,0.00024839,2]
[331927971,1720857042238,-273.0,0.00024839,2]
[331927972,1720857042247,-273.0,0.00024839,2]
[331927973,1720857042257,-273.0,0.00024839,2]
[331927974,1720857042266,-273.0,0.00024839,2]
[331927975,1720857042276,-273.0,0.00024839,2]
[331927976,1720857042287,-273.0,0.00024839,2]
[331927977,1720857042298,-273.0,0.00024839,2]
[331927978,1720857042308,-273.0,0.00024839,2]
[331927979,1720857042320,-273.0,0.00024839,2]
[331927980,1720857042330,-273.0,0.00024839,2]
[331927981,1720857042340,-273.0,0.00024839,2]
[331927982,1720857042351,-273.0,0.00024839,2]
[331927983,1720857042360,-273.0,0.00024839,2]
[331927984,1720857042370,-273.0,0.00024839,2]
[331927985,1720857042379,-273.0,0.00024839,2]
[331927986,1720857042388,-273.0,0.00024839,2]
[331927988,1720857042397,-273.0,0.00024839,2]
[331927989,1720857042407,-273.0,0.00024839,2]
[331927990,1720857042418,-273.0,0.00024839,2]
[331927991,1720857042429,-273.0,0.00024839,2]
[331927992,1720857042438,-273.0,0.00024839,2]
[331927993,1720857042449,-500.0,0.00024839,2]
[331927994,1720857042459,-153.0,0.00024853,2]
[331927995,1720857042468,-373.72364223,0.00024897,2]
[331927997,1720857042478,-500.0,0.0002492,2]
[331927999,1720857042487,-3237.96913115,0.00024921,3]
[331928000,1720857042497,-500.0,0.0002493,2]
[331928002,1720857042506,-500.0,0.0002493,2]
[331928004,1720857042516,-500.0,0.0002493,2]
[331928006,1720857042527,-500.0,0.0002493,2]
[331928007,1720857042537,-500.0,0.0002493,2]
[331928008,1720857042547,-500.0,0.00024931,2]
[331928009,1720857042556,-500.0,0.00024931,2]
[331928010,1720857042566,-500.00844187,0.00024931,2]
[331928011,1720857042576,-500.0,0.00024931,2]
[331928012,1720857042585,-200.37730886,0.00024931,2]
[331928013,1720857042594,-500.0,0.00024931,2]
[331928014,1720857042605,-500.0,0.00024931,2]
[331928015,1720857042615,-500.0,0.00024931,2]
[331928016,1720857042625,-500.0,0.00024931,2]
[331928018,1720857042635,-235.71,0.00024931,2]
[331928020,1720857042645,-500.0,0.00024931,2]
[331928021,1720857042654,-500.0,0.00024931,2]
[331928022,1720857042663,-500.0,0.00024931,2]
[331928023,1720857042673,-500.0,0.00024931,2]
[331928024,1720857042682,-1699.17,0.00024931,2]
[331928025,1720857042693,-500.0,0.00024931,2]
[331928026,1720857042704,-365.63884625,0.00024931,2]
[331928027,1720857042717,-4745.72,0.00024931,2]
[331928028,1720857042727,-500.0,0.00024931,2]
[331928029,1720857042737,-500.0,0.00024931,2]
[331928030,1720857042748,-1727.69,0.00024931,2]
[331928031,1720857042758,-500.0,0.00024931,2]
[331928032,1720857042767,-500.0,0.00024931,2]
[331928033,1720857042777,-154.8107839,0.00024931,2]
[331928035,1720857042788,-568.8,0.00024931,2]
[331928036,1720857042800,-500.0,0.00024931,2]
[331928037,1720857042810,-500.0,0.00024931,2]
[331928038,1720857042825,-201.73188513,0.00024931,2]
[331928039,1720857042835,-500.0,0.00024931,2]
[331928041,1720857042847,-500.0,0.00024931,2]
[331928043,1720857042856,-500.0,0.00024931,2]
[331928044,1720857042865,-500.0,0.00024931,2]
[331928045,1720857042877,-628.01464095,0.00024989,2]
[331928046,1720857042887,-229.31956132,0.00025121,2]
[331928047,1720857042896,-229.31956132,0.00025121,2]
[331928048,1720857042905,-379.75085374,0.00025127,2]
[331928049,1720857042914,-500.0,0.00025205,2]
[331928050,1720857042923,-609.92725813,0.00025205,2]
[331928051,1720857042932,-500.0,0.00025205,2]
[331928052,1720857042942,-500.0,0.00025205,2]
[331928053,1720857042951,-500.0,0.00025205,2]
[331928054,1720857042961,-500.0,0.00025205,2]
[331928055,1720857042970,-500.0,0.00025205,2]
[331928056,1720857042980,-500.0,0.00025205,2]
[331928057,1720857042990,-1699.17,0.00025205,2]
[331928058,1720857043000,-500.0,0.00025205,2]
[331928059,1720857043011,-4745.72,0.00025205,2]
[331928060,1720857043020,-500.0,0.00025205,2]
[331928061,1720857043029,-1727.69,0.00025205,2]
[331928062,1720857043039,-500.0,0.00025205,2]
[331928063,1720857043048,-500.0,0.00025205,2]
[331928064,1720857043057,-500.0,0.00025205,2]
[331928065,1720857043068,-541.68,0.00025205,2]
[331928066,1720857043078,-500.0,0.00025205,2]
[331928067,1720857043089,-471.5951001,0.00025205,2]
[331928068,1720857043101,-500.0,0.00025205,2]
[331928069,1720857043110,-500.0,0.00025478,2]
[331928070,1720857043119,-500.0,0.00025478,2]
[331928071,1720857043128,-500.0,0.00025479,2]
[331928072,1720857043137,-500.0,0.00025479,2]
[331928073,1720857043146,-500.0,0.00025479,2]
[331928074,1720857043155,-500.0,0.00025479,2]
[331928075,1720857043165,-500.0,0.00025479,2]
[331928076,1720857043175,-500.0,0.00025479,2]
[331928077,1720857043183,-500.0,0.00025479,2]
[331928078,1720857043193,-1699.17,0.00025479,2]
[331928079,1720857043202,-500.0,0.00025479,2]
[331928080,1720857043211,-4745.72,0.00025479,2]
[331928081,1720857043220,-500.0,0.00025479,2]
[331928082,1720857043229,-1727.69,0.00025479,2]
[331928083,1720857043239,-241.30093037,0.00025479,2]
[331928084,1720857043248,-500.0,0.00025479,2]
[331928085,1720857043257,-500.0,0.00025479,2]
[331928086,1720857043266,-500.0,0.00025479,2]
[331928087,1720857043275,-224.99030814,0.00025588,2]
[331928088,1720857043284,-3237.96913115,0.00025729,3]
[331928089,1720857043293,-150.0,0.00025739,2]
[331928090,1720857043303,-1407.0,0.00025739,2]
[331928091,1720857043314,-500.0,0.00025753,2]
[331928092,1720857043323,-500.0,0.00025753,2]
[331928093,1720857043333,-157.96283463,0.00025753,2]
[331928094,1720857043343,-500.0,0.00025753,2]
[331928095,1720857043352,-500.0,0.00025753,2]
[331928096,1720857043362,-500.0,0.00025753,2]
[331928098,1720857043373,-500.0,0.00025753,2]
[331928099,1720857043384,-1699.17,0.00025753,2]
[331928100,1720857043394,-500.0,0.00025753,2]
[331928101,1720857043403,-4745.72,0.00025753,2]
[331928102,1720857043413,-500.0,0.00025753,2]
[331928103,1720857043423,-1727.69,0.00025753,2]
[331928104,1720857043433,-500.0,0.00025753,2]
[331928105,1720857043443,-500.0,0.00025753,2]
[331928106,1720857043453,-500.0,0.00025753,2]
[331928107,1720857043463,-1000.0,0.00026,26]
[331928108,1720857043473,-220.35824594,0.00026014,2]
[331928109,1720857043483,-500.0,0.00026027,2]
[331928110,1720857043492,-500.0,0.00026027,2]
[331928111,1720857043502,-504.92,0.00026027,2]
[331928112,1720857043511,-500.0,0.00026027,2]
[331928113,1720857043521,-500.0,0.00026027,2]
[331928114,1720857043531,-500.0,0.00026027,2]
[331928115,1720857043540,-1699.17,0.00026027,2]
[331928116,1720857043550,-500.0,0.00026027,2]
[331928117,1720857043560,-4745.72,0.00026027,2]
[331928118,1720857043572,-500.0,0.00026027,2]
[331928119,1720857043582,-1727.69,0.00026027,2]
[331928120,1720857043592,-367.60111151,0.00026027,2]
[331928121,1720857043602,-500.0,0.00026027,2]
[331928122,1720857043611,-500.0,0.00026027,2]
[331928123,1720857043620,-316.51158362,0.00026061,2]
[331928124,1720857043633,-220.35824594,0.00026095,2]
[331928125,1720857043642,-154.5944506,0.00026132,2]
[331928126,1720857043652,-316.51158362,0.0002623,2]
[331928127,1720857043662,-316.51158362,0.00026278,2]
[331928128,1720857043671,-500.0,0.000263,2]
[331928129,1720857043681,-500.0,0.000263,2]
[331928130,1720857043691,-500.0,0.00026301,2]
[331928131,1720857043701,-500.0,0.00026301,2]
[331928132,1720857043711,-500.0,0.00026301,2]
[331928133,1720857043721,-500.0,0.00026301,2]
[331928134,1720857043733,-500.0,0.00026301,2]
[331928135,1720857043742,-1699.17,0.00026301,2]
[331928136,1720857043752,-500.0,0.00026301,2]
[331928137,1720857043761,-4745.72,0.00026301,2]
[331928138,1720857043771,-500.0,0.00026301,2]
[331928139,1720857043780,-1727.69,0.00026301,2]
[331928140,1720857043790,-500.0,0.00026301,2]
[331928141,1720857043800,-500.0,0.00026301,2]
[331928142,1720857043810,-167.25207353,0.00026339,2]
[331928143,1720857043820,-316.51158362,0.00026476,2]
[331928144,1720857043830,-150.0,0.000265,2]
[331928145,1720857043841,-3237.96913115,0.00026565,3]
[331928146,1720857043854,-500.0,0.00026575,2]
[331928147,1720857043863,-500.0,0.00026575,2]
[331928148,1720857043873,-500.0,0.00026575,2]
[331928149,1720857043884,-500.0,0.00026575,2]
[331928150,1720857043893,-500.0,0.00026575,2]
[331928151,1720857043903,-1699.17,0.00026575,2]
[331928152,1720857043912,-500.0,0.00026575,2]
[331928153,1720857043925,-4745.72,0.00026575,2]
[331928154,1720857043935,-500.0,0.00026575,2]
[331928155,1720857043945,-1727.69,0.00026575,2]
[331928156,1720857043955,-500.0,0.00026575,2]
[331928157,1720857043965,-500.0,0.00026575,2]
[331928158,1720857043974,-153.23,0.000266,31]
[331928159,1720857043984,-155.38803879,0.00026614,2]
[331928160,1720857043994,-224.99030814,0.00026618,2]
[331928161,1720857044003,-154.85472207,0.00026663,2]
[331928162,1720857044013,-174.06400607,0.00026663,2]
[331928163,1720857044024,-316.51158362,0.0002669,2]
[331928164,1720857044035,-150.4447953,0.00026758,2]
[331928165,1720857044045,-500.0,0.00026848,2]
[331928166,1720857044056,-500.0,0.00026848,2]
[331928167,1720857044067,-500.0,0.00026849,2]
[331928168,1720857044076,-500.0,0.00026849,2]
[331928169,1720857044087,-500.0,0.00026849,2]
[331928170,1720857044097,-500.0,0.00026849,2]
[331928171,1720857044107,-500.0,0.00026849,2]
[331928172,1720857044117,-1699.17,0.00026849,2]
[331928173,1720857044127,-500.0,0.00026849,2]
[331928174,1720857044138,-4745.72,0.00026849,2]
[331928175,1720857044148,-258.930303,0.00026849,2]
[331928176,1720857044159,-1727.69,0.00026849,2]
[331928177,1720857044169,-500.0,0.00026849,2]
[331928178,1720857044179,-500.0,0.00026849,2]
[331928179,1720857044189,-220.35824594,0.00026883,2]
[331928180,1720857044199,-220.35824594,0.00026939,2]
[331928181,1720857044209,-316.51158362,0.00027113,2]
[331928182,1720857044219,-1207.12787167,0.00027123,2]
[331928183,1720857044230,-500.0,0.00027123,2]
[331928184,1720857044240,-500.0,0.00027123,2]
[331928185,1720857044249,-500.0,0.00027123,2]
[331928186,1720857044259,-500.0,0.00027123,2]
[331928187,1720857044270,-500.0,0.00027123,2]
[331928188,1720857044279,-1699.17,0.00027123,2]
[331928189,1720857044288,-500.0,0.00027123,2]
[331928190,1720857044299,-4745.72,0.00027123,2]
[331928191,1720857044309,-1727.69,0.00027123,2]
[331928192,1720857044320,-500.0,0.00027123,2]
[331928194,1720857044329,-500.0,0.00027123,2]
[331928195,1720857044340,-610.635225,0.00027184,2]
[331928196,1720857044350,-167.87293218,0.00027187,2]
[331928197,1720857044359,-309.14983794,0.00027187,2]
[331928198,1720857044369,-158.29964009,0.00027194,2]
[331928199,1720857044378,-183.727996,0.00027195,2]
[331928200,1720857044388,-150.4447953,0.00027339,2]
[331928201,1720857044397,-391.80627157,0.00027368,2]
[331928202,1720857044406,-153.89522402,0.00027386,2]
[331928203,1720857044416,-3237.96913115,0.00027387,3]
[331928204,1720857044425,-500.0,0.00027397,2]
[331928205,1720857044434,-254.79866528,0.00027397,2]
[331928206,1720857044444,-631.94356755,0.00027397,2]
[331928207,1720857044453,-500.0,0.00027397,2]
[331928208,1720857044462,-500.0,0.00027397,2]
[331928209,1720857044473,-500.0,0.00027397,2]
[331928210,1720857044482,-620.91081034,0.00027397,2]
[331928211,1720857044492,-1699.17,0.00027397,2]
[331928212,1720857044501,-500.0,0.00027397,2]
[331928213,1720857044511,-4745.72,0.00027397,2]
[331928214,1720857044520,-1727.69,0.00027397,2]
[331928215,1720857044530,-495.01624011,0.00027397,2]
[331928216,1720857044540,-500.0,0.00027397,2]
[331928217,1720857044549,-167.431397,0.00027397,120]
[331928218,1720857044558,-175.48417072,0.000274,2]
[331928219,1720857044569,-600.0,0.00027434,2]
[331928220,1720857044577,-316.51158362,0.00027449,2]
[331928221,1720857044587,-316.51158362,0.00027509,2]
[331928222,1720857044596,-100.62917727,0.00027529,2]
[331928223,1720857044646,-215.88240635,0.00027529,2]
[331928224,1720857044655,-316.51158362,0.00027585,2]
[331928225,1720857044664,-224.99030814,0.00027649,2]
[331928226,1720857044674,-500.0,0.0002767,2]
[331928227,1720857044684,-500.0,0.0002767,2]
[331928228,1720857044693,-500.0,0.00027671,2]
[331928229,1720857044702,-500.0,0.00027671,2]
[331928230,1720857044711,-500.0,0.00027671,2]
[331928231,1720857044720,-500.0,0.00027671,2]
[331928232,1720857044729,-1699.17,0.00027671,2]
[331928233,1720857044739,-500.0,0.00027671,2]
[331928234,1720857044748,-4745.72,0.00027671,2]
[331928235,1720857044757,-1727.69,0.00027671,2]
[331928236,1720857044766,-500.0,0.00027671,2]
[331928237,1720857044776,-316.51158362,0.00027674,2]
[331928238,1720857044786,-220.35824594,0.00027718,2]
[331928239,1720857044795,-743.49995005,0.0002772,2]
[331928240,1720857044891,-154.5944506,0.00027722,2]
[331928241,1720857044900,-316.51158362,0.00027742,2]
[331928242,1720857044909,-512.17421701,0.000278,2]
[331928243,1720857044919,-374.0,0.000279,2]
[331928244,1720857044928,-152.94115716,0.00027939,2]
[331928245,1720857044938,-500.0,0.00027945,2]
[331928246,1720857044947,-599.0,0.00027945,2]
[331928247,1720857044956,-500.0,0.00027945,2]
[331928248,1720857044965,-500.0,0.00027945,2]